Cogmind - Beta 13 @@@ ROGUE MODE // 2024.04.15 @ 10:57:22 Player: Thaleia Result: Destroyed by Explosive Trap Performance ------------- Evolutions (0) 0 Regions Visited (2) 400 Robots Destroyed (13) 65 Value Destroyed (373) 373 Prototype IDs (0) 0 Alien Tech Used (0) 0 Bonus (0) 0 TOTAL SCORE: 838 Bonus ------- None Cogmind --------- Core Integrity 0/250 Matter 246/300 Energy 230/250 System Corruption 0% Temperature Cool (2) Movement Treading (152) Location -10/Mines Parts ------- > --- POWER (1) -------- Ion Engine > --- PROPULSION (2) --- Light Treads Advanced Treads > --- UTILITY (2) ------ Large Storage Unit ECM Suite > --- WEAPON (2) ------- Assault Rifle Datajack > --- INVENTORY (15) --- Ion Engine Light Treads Light Treads Light Treads High-capacity Storage Unit Medium Matter Pod (80) Sensor Array Sensor Array Light Armor Plating Tractor Beam Beamcaster Grenade Launcher Peak State ------------ > --- POWER ------------ Ion Engine > --- PROPULSION ------- Light Treads Advanced Treads > --- UTILITY ---------- Large Storage Unit ECM Suite > --- WEAPON ----------- Assault Rifle Datajack > --- INVENTORY -------- Ion Engine Light Treads Light Treads Light Treads High-capacity Storage Unit Medium Matter Pod Sensor Array Sensor Array Light Armor Plating Tractor Beam Beamcaster Grenade Launcher [Rating: 10] Favorites ----------- Power Ion Engine Engine Ion Engine Propulsion Light Treads Treads Light Treads Utility ECM Suite Device ECM Suite Storage Small Storage Unit Weapon Assault Rifle Ballistic Gun Assault Rifle Launcher Grenade Launcher Special Melee Weapon Datajack Build | -11 -10 -10 ------- Run | Yrd Mat Min Slots Evolved . | . . . Power . | . . . Propulsion . | . . . Utility . | . . . Weapon . | . . . Parts Attached 17 | 6 6 5 Power 3 | 1 1 1 Engine 3 | 1 1 1 Core . | . . . Reactor . | . . . Propulsion 5 | 2 . 3 Treads 5 | 2 . 3 Leg . | . . . Wheel . | . . . Hover . | . . . Flight . | . . . Utility 3 | 1 2 . Device 1 | . 1 . Storage 2 | 1 1 . Processor . | . . . Hackware . | . . . Protection . | . . . Artifact . | . . . Weapon 6 | 2 3 1 Energy Gun . | . . . Energy Cannon . | . . . Ballistic Gun 4 | 2 2 . Ballistic Cannon . | . . . Launcher 1 | . 1 . Special Weapon . | . . . Impact Weapon . | . . . Slashing Weapon . | . . . Piercing Weapon . | . . . Special Melee Weapon 1 | . . 1 Unidentified Prototypes . | . . . Parts Lost 2 | . . 2 Power . | . . . Propulsion 1 | . . 1 Utility . | . . . Weapon 1 | . . 1 Highest Loss Streak 2 | . . 2 To Critical Strikes . | . . . Average Slot Usage (%) 95 | . 94 98 Engine 14 | . 14 14 Treads 28 | . 28 28 Device 10 | . 9 14 Storage 14 | . 14 14 Ballistic Gun 25 | . 27 14 Special Melee Weapon 2 | . . 12 Naked Turns . | . . . Heaviest Build 31 | 13 31 30 Greatest Support 42 | 40 40 42 Greatest Overweight (x) . | . . . Average Overweight (x) . | . . . Largest Inventory Capacity 15 | 8 15 15 Average Capacity 10 | 6 10 15 Most Carried 12 | 3 12 12 Average Carried 8 | 2 8 10 Final Capacity 15 | 8 15 15 Final Carried 12 | 3 12 12 Class Distribution -------------------- 100% | Mutant Dominant Class ---------------- Mutant | -10/Materials Mutant | -10/Mines Resources | -11 -10 -10 ----------- Run | Yrd Mat Min Matter Collected 527 | 206 218 103 Remotely . | . . . Salvage Created 381 | . 278 103 Parts 23 | . 20 3 Haulers Intercepted . | . . . Recyclers Shooed . | . . . Parts Field Recycled . | . . . Retrieved Matter . | . . . Parts Self-Destructed . | . . . Prevented . | . . . Kills | -11 -10 -10 ------- Run | Yrd Mat Min Combat Hostiles Destroyed 11 | . 9 2 Guns 8 | . 6 2 AOE 3 | . 3 . Classes Destroyed 3 | . 3 . Worker 2 | . 1 1 Swarmer 3 | . 3 . Grunt 8 | . 6 2 Best Kill Streak 4 | . 4 3 Combat Bots Only 4 | . 4 2 Max Kills in Single Turn 2 | . 2 1 Gunslinging . | . . . Exploded 2 | . 2 . Melee . | . . . Uniques/NPCs Destroyed . | . . . Combat | -11 -10 -10 -------- Run | Yrd Mat Min Hostile Shots Fired 107 | . 67 40 Missed 27 | . 19 8 Damage Taken 971 | . 565 406 Core 250 | . 130 120 Absorbed by Shields . | . . . Core Remaining (%) 100 | 100 . . Volleys Fired 54 | . 30 24 Largest 2 | . 2 2 Hottest 50 | . 50 40 Shots Fired 84 | . 58 26 Gun 78 | . 52 26 Cannon . | . . . Launcher 6 | . 6 . Special . | . . . Kinetic 78 | . 52 26 Thermal . | . . . Explosive 6 | . 6 . Electromagnetic . | . . . Robot Hit Streak 9 | . 9 7 Robot Miss Streak 4 | . 4 1 Penetration Max . | . . . Secondary Targets 1 | . 1 . Max Gunslinging Chain 1 | . 1 . Shots Hit Robots 46 | . 23 23 Core Hits 26 | . 20 6 Critical Kills . | . . . Critical Parts Destroyed . | . . . Critical Strikes . | . . . Melee Attacks 4 | . . 4 Impact . | . . . Slashing . | . . . Piercing . | . . . Sneak Attacks . | . . . Combat Hostiles . | . . . Follow-up Attacks . | . . . Damage Inflicted 923 | . 656 267 Guns 581 | . 323 258 Cannons . | . . . Explosions 305 | . 305 . Melee . | . . . Ramming 37 | . 28 9 Kinetic 581 | . 323 258 Thermal 110 | . 110 . Explosive 195 | . 195 . Electromagnetic . | . . . Impact . | . . . Slashing . | . . . Piercing . | . . . Highest Corruption . | . . . Average Corruption . | . . . Corruption Purged . | . . . Corruption Blocked . | . . . Overload Shots . | . . . Overflow Damage . | . . . Projectiles . | . . . Explosions . | . . . Melee . | . . . Knockbacks 1 | . . 1 Impact 1 | . . 1 Kinetic . | . . . Secondary . | . . . Self-Inflicted Damage . | . . . Shots . | . . . Rammed 9 | . 7 2 Targets Rammed 11 | . 8 3 Kicked . | . . . Crushed 2 | . 1 1 Highest Temperature 38 | . 38 25 Average Temperature 12 | . 12 13 Received Heat Transfer 474 | . 255 219 Siege Activations . | . . . Robots Corrupted . | . . . Combat Hostiles . | . . . Parts Fried . | . . . Impact Corruptions . | . . . Robots Melted . | . . . Combat Hostiles . | . . . Parts Melted . | . . . Heat Transferred 100 | . 100 . Parts Sabotaged . | . . . Parts Stolen . | . . . Parts Stripped . | . . . Power Chain Reactions . | . . . Alert | -11 -10 -10 ------- Run | Yrd Mat Min Peak Influence 312 | . 312 109 Initial 74 | . . 74 Average 78 | . 86 93 Maximum Alert Level 1 | . 1 . Low Security (%) 92 | 100 89 100 Level 1 7 | . 10 . Level 2 . | . . . Level 3 . | . . . Level 4 . | . . . Level 5 . | . . . High Security . | . . . Max Security . | . . . Squads Dispatched 1 | . 1 . Investigation . | . . . Extermination . | . . . Reinforcement 1 | . 1 . Assault . | . . . Garrison . | . . . Intercept . | . . . Searches Triggered . | . . . Construction Impeded . | . . . Haulers Reinforced . | . . . Active Scanning Responses . | . . . Cargo Convoy Interrupts . | . . . Stealth | -11 -10 -10 --------- Run | Yrd Mat Min Distress Signals 2 | . 2 . Communications Jammed . | . . . Distress Signals . | . . . Times Spotted 27 | . 25 2 Peak Tracking Total 5 | . 5 2 Tactical Retreats 4 | . 4 . Traps | -11 -10 -10 ------- Run | Yrd Mat Min Traps Triggered 1 | . . 1 Indirectly . | . . . Trap Hack Attempts . | . . . Triggered . | . . . Disarmed . | . . . Reprogrammed . | . . . Reused . | . . . Traps Extracted . | . . . Installed . | . . . Triggered . | . . . Objects Rigged 6 | . 6 . Machines | -11 -10 -10 ---------- Run | Yrd Mat Min Machines Disabled 3 | . 3 . Max in Single Turn 3 | . 3 . Machines Repaired . | . . . Machines Dismantled . | . . . Machines Sabotaged . | . . . Overloaded Fab Kills . | . . . Hacking | -11 -10 -10 --------- Run | Yrd Mat Min Machines Accessed 8 | . 7 1 Terminals 6 | . 6 . Fabricators . | . . . Repair Stations 1 | . 1 . Recycling Units . | . . . Scanalyzers . | . . . Garrison Access . | . . . Total Hacks 13 | . 12 1 Successful 7 | . 6 1 Failed 6 | . 6 . Catastrophic . | . . . Database Lockouts . | . . . Manual 7 | . 7 . Terminals 11 | . 11 . Fabricators . | . . . Repair Stations 1 | . 1 . Recycling Units . | . . . Scanalyzers . | . . . Garrison Access . | . . . Terminal Hacks 5 | . 4 1 Record 1 | . 1 . Open Door 1 | . . 1 Alert Level 1 | . 1 . Locate Traps 1 | . 1 . Maintenance Status 1 | . 1 . Fabricator Hacks . | . . . Repair Station Hacks . | . . . Recycling Unit Hacks . | . . . Scanalyzer . | . . . Garrison Access Hacks . | . . . Unauthorized Hacks 2 | . 2 . Terminals 2 | . 2 . Assimilate 1 | . 1 . Detonate 1 | . 1 . Fabricators . | . . . Repair Stations . | . . . Recycling Units . | . . . Scanalyzers . | . . . Garrison Access . | . . . Data Cores Recovered . | . . . Used . | . . . Hacking Detections 7 | . 7 . Full Trace Events 1 | . 1 . Feedback Events . | . . . Feedback Blocked . | . . . Robot Schematics Acquired . | . . . Robots Built . | . . . Authchips . | . . . Time . | . . . Total Robot Build Rating . | . . . Part Schematics Acquired . | . . . Parts Built . | . . . Authchips . | . . . Time . | . . . Total Part Build Rating . | . . . Parts Repaired . | . . . Time . | . . . Parts Recycled . | . . . Recycled Matter . | . . . Retrieved Matter . | . . . Retrieved Components . | . . . Parts Scanalyzed . | . . . Part Schematics Acquired . | . . . Parts Damaged . | . . . Bothacking | -11 -10 -10 ------------ Run | Yrd Mat Min Used RIF Installer . | . . . Robots Hacked 1 | . . 1 Non-combat . | . . . Combat 1 | . . 1 Robot Hacks Applied 1 | . . 1 parse_system 1 | . . 1 Relay Couplers Released . | . . . Fabnet Peak Effective % . | . . . Robots Rewired . | . . . Allies Hacked . | . . . Hacks Repelled . | . . . Allies | -11 -10 -10 -------- Run | Yrd Mat Min Total Allies . | . . . Largest Group . | . . . Highest-Rated Group . | . . . Highest-Rated Ally . | . . . Total Orders . | . . . Ally Attacks . | . . . Total Damage . | . . . Kills . | . . . Allies Corrupted . | . . . Allies Melted . | . . . Intel | -11 -10 -10 ------- Run | Yrd Mat Min Robot Analysis Total . | . . . Derelict Logs Recovered 1 | . . 1 Drone Launches . | . . . Drone Recoveries . | . . . Exploration | -11 -10 -10 ------------- Run | Yrd Mat Min Turns Passed 1307 | 147 936 224 Spaces Moved 690 | 87 505 98 Core 3 | 3 . . Treads 687 | 84 505 98 Legs . | . . . Wheels . | . . . Hover . | . . . Flight . | . . . Fastest Speed 50 | 50 160 152 Average Speed 159 | 156 160 159 Slowest Speed 160 | 160 160 160 Overloaded Moves . | . . . Propulsion Burnouts . | . . . Robots Hopped . | . . . Cave-ins Triggered . | . . . Exploration Rate (%) 31 | 7 59 28 Regions Visited 2 Branch Regions 1 Pre-discovered Areas . | . . . Known Exits Taken . | . . . Unknown Exits Taken 2 | 1 1 . Scrap Searched . | . . . Spaces Dug . | . . . Terrain Destroyed 66 | . 66 . Melee . | . . . Projectile . | . . . AOE 66 | . 66 . Terrain Rammed . | . . . Walls Destroyed . | . . . Machines Disabled . | . . . Actions | -11 -10 -10 --------- Run | Yrd Mat Min Total 808 | 95 578 135 Wait 11 | . 11 . Move 688 | 86 504 98 Hop . | . . . Pick Up 17 | 3 13 1 Fast Attach 6 | 6 . . Attach 3 | . 1 2 Detach . | . . . Swap 8 | . 5 3 Drop 6 | . 6 . Fire 54 | . 30 24 Melee 4 | . . 4 Ram . | . . . Kick . | . . . Crush 11 | . 8 3 Escape Stasis . | . . . Rewire . | . . . Trap . | . . . Miscellaneous . | . . . Route ------- -11/Scrapyard -10/Materials -10/Mines (discovered 1 exit: [*Mat]) History --------- Turn | Location | Event 8 | -11/Scrapyard | Discovered new exit (range 16) 148 | -11/Scrapyard | Entered Materials 318 | -10/Materials | Build established: Mutant 766 | -10/Materials | Discovered new exit (range 7) 868 | -10/Materials | Core integrity fell below 50% 1084 | -10/Materials | Entered Mines 1115 | -10/Mines | Core integrity fell below 20% 1190 | -10/Mines | Discovered new exit (range 8) 1276 | -10/Mines | Learned Materials stockpile data 1290 | -10/Mines | Met a Derelict who couldn't figure out how to use a Trap Extractor 1308 | -10/Mines | Destroyed by Explosive Trap Last Messages --------------- Data stored: Materials stockpile data. 01289_ Connecting with SHOP.Sys... 01289_ Current location identified: Mines >>Open Door Sealed Doors opened. 01290_ MK-989(g): "So I found this thing but I have no idea how to use it. And who the hell trapped this place to begin with?!" 01290_ MK-989(g): "I give up! Here you try, I'm outta here before something nasty happens..." 01290_ Tosses Imp. Trap Extractor to the ground. 01290_ MK-989(g) triggered Blade Trap. 01290_ Massive razor-sharp blades shoot up from within the floor. 01290_ Beamcaster severed. 01290_ Carbon-fiber Leg severed. 01297_ Acquired Beamcaster. 01299_ U-05 Engineer lays Concrete. 01308_ Triggered Explosive Trap. 01308_ An explosion rips through the floor. Map ----- +----------------------------------------------------+ | ???????????????????????????????????????????? | | ???????????????????????????????????????????? | | ???????????????????????????????????????????? | | ???????????????????????????????????????????? | | ???????????????????????????????????????????? | | ???????????????????????????????????????????? | | ???????????????????????????????????????????? | | ???????????????????????????????????????????? | | ???????????????????????????????????????????? | | ???????????????????????????????????????????? | | ???????????????????????????????????????????? | | ???????????????????????????????????????????? | | ???????????????????????????????????????????? | | ???????????????? ??????????????????????????? | | ???????????????? ??????????????????????????? | | ???????????????? ??????????????????????????? | | ???????????????? ??????????????????????????? | | ???????????????? ??????????????????????????? | | ???????????????? ??????????????????????????? | | ???????????????? ??????????????????????????? | | ???????????????# #?????????????????????????? | | ??????????????? #?????????????????????????? | | ??????????????? ########??????????????????? | | ???????????????# #""""""#??????????????????? | | ???????????????# # ]=!!!#??????????????????? | | ??????######???# ##@!^ ##??????????????????? | | ???#### ##??# ##! =!#???????????????????? | | ??## #??# ### ####?????????????????? | | ??# #### # X ######????????????? | | ??# ## ?????? | | ???# r ########?????????? | | ??????## #????????????????? | | ???????### ## #????????????????? | | ?????????# ###### #????????????????? | | ????????## ###??#### u#???????????????? | | ??????### ##????### ??????????????? | | ?????## ###?????# ????????????? | | ?????# ##?????### ???????????? | | ?????# ##???????# #??????????? | | ?????# ##???????# ##??????????? | | ?????## ## ##???????###???????????? | | ??????########## #?????????????????????? | | ??????????????# #?????????????????????? | | ???#######????# ##?????????????????????? | | ???# #????# ####??????????????????????? | | ???# ###### #?????????????????????????? | | ???# #?????????????????????????? | | ???# ###### ########??????????????????? | | ???# #??# #??????????????????? | | ???# #??# #??????????????????? | +----------------------------------------------------+ Best States ------------- Heat Dissipation 25 Energy Generation 10 Energy Capacity 250 Matter Stores 300 Matter Capacity 300 Sight Range 16 Terrain Scan Density 10 ECM Strength 1 Evasion (%) 40 Recoil Reduction 2 Item Schematics ----------------- None Robot Schematics ------------------ None Fabricated ------------ Nothing Alien Tech Used ----------------- None Achievements -------------- True Hacker Challenges ------------ None Game ------ Seed CompactRefineryAirjet Manual? 0 Play Time 00:15:15 Cumulative 5.1 hours Start 2024.04.15 @ 10:38:34 End 2024.04.15 @ 10:57:22 Sessions 1 Manual Loads 0 Difficulty Rogue Special Mode None Game No. 14 Rogue 14 Adventurer 0 Explorer 0 Win Type - Total 0 Types 0/0/0/0/0/0/0/0/0 Lore% 7 Gallery% 8 Achievement% 10 Wizard Run 0 Options --------- Layout 1 ASCII 0 Keyboard 1 Movement Arrows Keybinds 0 Fullscreen 1 Font 32/Tamsyn Map View 50x40 Zoom Use 0% Tactical HUD 1 Map Filters NONE Filters NONE Steam 0 RUN: 7359da1b-fad2-4685-a243-0eff9817771d